[Event "Titled Tuesday Blitz July 4 Early 2023"]
[White "Becerra, Juan David"]
[Black "FuenfgegenWilly"]
[WhiteFideId "4404998"]
[WhiteElo "2579"]
[BlackElo "2389"]
[Result "1-0"]
[Round "3"]
[TimeControl "180+2"]
[Date "2023.07.04"]
[WhiteClock "0:00:37"]
[BlackClock "0:00:10"]
[Board "132"]

1. e4 {[%clk 0:02:58]}  e5 {[%clk 0:02:59]} 2. Nf3 {[%clk 0:02:58]}  Nc6 {[%clk 0:02:59]} 3. Bb5 {[%clk 0:02:59]}  a6 {[%clk 0:02:59]} 4. Ba4 {[%clk 0:02:59]}  d6 {[%clk 0:02:59]} 5. c3 {[%clk 0:02:59]}  Bd7 {[%clk 0:02:59]} 6. O-O {[%clk 0:02:58]}  Nge7 {[%clk 0:02:58]} 7. Qe2 {[%clk 0:02:58]}  Ng6 {[%clk 0:02:57]} 8. d3 {[%clk 0:02:57]}  Be7 {[%clk 0:02:57]} 9. Rd1 {[%clk 0:02:55]}  h6 {[%clk 0:02:57]} 10. Nbd2 {[%clk 0:02:55]}  Nf4 {[%clk 0:02:43]} 11. Qf1 {[%clk 0:02:55]}  Bg5 {[%clk 0:02:43]} 12. Bc2 {[%clk 0:02:35]}  Qf6 {[%clk 0:02:42]} 13. h3 {[%clk 0:02:25]}  Qg6 {[%clk 0:02:19]} 14. Kh2 {[%clk 0:02:18]}  Qh5 {[%clk 0:02:12]} 15. Ng1 {[%clk 0:02:14]}  Bf6 {[%clk 0:02:07]} 16. Nc4 {[%clk 0:02:08]}  g5 {[%clk 0:02:06]} 17. Bxf4 {[%clk 0:01:57]}  gxf4 {[%clk 0:02:05]} 18. Qe2 {[%clk 0:01:52]}  Qg6 {[%clk 0:02:01]} 19. Nf3 {[%clk 0:01:51]}  Rg8 {[%clk 0:02:00]} 20. Rg1 {[%clk 0:01:51]}  Qh5 {[%clk 0:01:56]} 21. Kh1 {[%clk 0:01:43]}  Ke7 {[%clk 0:01:43]} 22. Rae1 {[%clk 0:01:42]}  Bg4 {[%clk 0:01:28]} 23. Bd1 {[%clk 0:01:35]}  Rg6 {[%clk 0:01:25]} 24. Qd2 {[%clk 0:01:25]}  Rag8 {[%clk 0:01:21]} 25. Nh2 {[%clk 0:01:25]}  Bxd1 {[%clk 0:01:16]} 26. Qxd1 {[%clk 0:01:26]}  Qxd1 {[%clk 0:01:10]} 27. Rxd1 {[%clk 0:01:27]}  Bh4 {[%clk 0:01:11]} 28. Rd2 {[%clk 0:01:18]}  b5 {[%clk 0:01:07]} 29. Na3 {[%clk 0:01:17]}  b4 {[%clk 0:01:01]} 30. Nc2 {[%clk 0:01:16]}  a5 {[%clk 0:01:01]} 31. Nf3 {[%clk 0:01:16]}  Bf6 {[%clk 0:01:00]} 32. d4 {[%clk 0:01:16]}  Rb8 {[%clk 0:00:58]} 33. d5 {[%clk 0:01:14]}  Na7 {[%clk 0:00:56]} 34. cxb4 {[%clk 0:01:14]}  axb4 {[%clk 0:00:56]} 35. a4 {[%clk 0:01:15]}  bxa3 {[%clk 0:00:56]} 36. bxa3 {[%clk 0:01:14]}  Rb3 {[%clk 0:00:54]} 37. Ra1 {[%clk 0:01:11]}  Rg8 {[%clk 0:00:54]} 38. Nb4 {[%clk 0:01:09]}  Kd7 {[%clk 0:00:50]} 39. Rc2 {[%clk 0:01:09]}  Rb8 {[%clk 0:00:49]} 40. Nd2 {[%clk 0:01:09]}  R3xb4 {[%clk 0:00:40]} 41. axb4 {[%clk 0:01:10]}  Nb5 {[%clk 0:00:41]} 42. Nb3 {[%clk 0:01:08]}  Bd8 {[%clk 0:00:37]} 43. Ra6 {[%clk 0:01:05]}  Rb7 {[%clk 0:00:36]} 44. Kg1 {[%clk 0:01:03]}  Rb8 {[%clk 0:00:34]} 45. Kf1 {[%clk 0:01:03]}  Rb7 {[%clk 0:00:28]} 46. Ke2 {[%clk 0:01:03]}  Rb8 {[%clk 0:00:27]} 47. Kd3 {[%clk 0:01:03]}  Be7 {[%clk 0:00:24]} 48. Rca2 {[%clk 0:01:01]}  Bf6 {[%clk 0:00:21]} 49. Ra8 {[%clk 0:01:00]}  Rb7 {[%clk 0:00:21]} 50. Na5 {[%clk 0:01:01]}  Rb6 {[%clk 0:00:21]} 51. Nc6 {[%clk 0:01:01]}  Nd4 {[%clk 0:00:20]} 52. Nxd4 {[%clk 0:00:55]}  exd4 {[%clk 0:00:21]} 53. Rb2 {[%clk 0:00:54]}  Be5 {[%clk 0:00:20]} 54. b5 {[%clk 0:00:54]}  Rb7 {[%clk 0:00:20]} 55. Ra6 {[%clk 0:00:54]}  f6 {[%clk 0:00:20]} 56. b6 {[%clk 0:00:54]}  cxb6 {[%clk 0:00:18]} 57. Raxb6 {[%clk 0:00:54]}  Rc7 {[%clk 0:00:17]} 58. Rb7 {[%clk 0:00:54]}  Kc8 {[%clk 0:00:16]} 59. Rxc7+ {[%clk 0:00:54]}  Kxc7 {[%clk 0:00:17]} 60. Rb4 {[%clk 0:00:50]}  Kd7 {[%clk 0:00:16]} 61. Rb7+ {[%clk 0:00:50]}  Ke8 {[%clk 0:00:16]} 62. Rh7 {[%clk 0:00:51]}  Kf8 {[%clk 0:00:16]} 63. Rxh6 {[%clk 0:00:49]}  Kg7 {[%clk 0:00:17]} 64. Rh5 {[%clk 0:00:50]}  Kg6 {[%clk 0:00:17]} 65. Rh8 {[%clk 0:00:50]}  f5 {[%clk 0:00:16]} 66. exf5+ {[%clk 0:00:49]}  Kxf5 {[%clk 0:00:17]} 67. Re8 {[%clk 0:00:49]}  Kg5 {[%clk 0:00:16]} 68. Rg8+ {[%clk 0:00:43]}  Kh4 {[%clk 0:00:16]} 69. Ke4 {[%clk 0:00:40]}  Kh5 {[%clk 0:00:15]} 70. Rg4 {[%clk 0:00:40]}  Kh6 {[%clk 0:00:14]} 71. Rxf4 {[%clk 0:00:39]}  Kg5 {[%clk 0:00:13]} 72. Rf5+ {[%clk 0:00:39]}  Kg6 {[%clk 0:00:13]} 73. g4 {[%clk 0:00:37]}  Kg7 {[%clk 0:00:13]} 74. h4 {[%clk 0:00:37]}  Kg6 {[%clk 0:00:13]} 75. h5+ {[%clk 0:00:37]}  Kh6 {[%clk 0:00:13]} 76. f4 {[%clk 0:00:38]}  Bg7 {[%clk 0:00:13]} 77. Rf7 {[%clk 0:00:38]}  Bh8 {[%clk 0:00:12]} 78. g5+ {[%clk 0:00:37]}  Kxh5 {[%clk 0:00:10]} 79. Rh7+ {[%clk 0:00:37]} 1-0


[Site "https://www.chess.com"]

[Event "Titled Tuesday Blitz July 4 Early 2023"]
[White "Koridze, Lile"]
[Black "ArtemDyachuk"]
[WhiteFideId "13612514"]
[WhiteElo "2376"]
[BlackElo "2573"]
[Result "0-1"]
[Round "3"]
[TimeControl "180+2"]
[Date "2023.07.04"]
[WhiteClock "0:00:06"]
[BlackClock "0:02:01"]
[Board "135"]

1. d4 {[%clk 0:03:00]}  Nf6 {[%clk 0:02:57]} 2. c4 {[%clk 0:03:00]}  e6 {[%clk 0:02:57]} 3. Nf3 {[%clk 0:02:59]}  c5 {[%clk 0:02:56]} 4. d5 {[%clk 0:02:59]}  d6 {[%clk 0:02:55]} 5. Nc3 {[%clk 0:02:55]}  exd5 {[%clk 0:02:55]} 6. cxd5 {[%clk 0:02:54]}  g6 {[%clk 0:02:56]} 7. e4 {[%clk 0:02:54]}  Bg7 {[%clk 0:02:55]} 8. Bd3 {[%clk 0:02:54]}  O-O {[%clk 0:02:54]} 9. O-O {[%clk 0:02:54]}  Bg4 {[%clk 0:02:54]} 10. h3 {[%clk 0:02:51]}  Bxf3 {[%clk 0:02:54]} 11. Qxf3 {[%clk 0:02:51]}  Nbd7 {[%clk 0:02:55]} 12. Bf4 {[%clk 0:02:51]}  Ne8 {[%clk 0:02:51]} 13. Rab1 {[%clk 0:02:39]}  Ne5 {[%clk 0:02:46]} 14. Qe2 {[%clk 0:02:39]}  Nxd3 {[%clk 0:02:44]} 15. Qxd3 {[%clk 0:02:40]}  a6 {[%clk 0:02:40]} 16. a4 {[%clk 0:02:40]}  Rb8 {[%clk 0:02:38]} 17. b3 {[%clk 0:02:39]}  b5 {[%clk 0:02:35]} 18. axb5 {[%clk 0:02:39]}  Qa5 {[%clk 0:02:35]} 19. Bd2 {[%clk 0:01:43]}  axb5 {[%clk 0:02:33]} 20. b4 {[%clk 0:01:37]}  cxb4 {[%clk 0:02:28]} 21. Ne2 {[%clk 0:01:36]}  Qa3 {[%clk 0:02:27]} 22. Rb3 {[%clk 0:01:34]}  Qa2 {[%clk 0:02:16]} 23. Bxb4 {[%clk 0:01:29]}  f5 {[%clk 0:02:15]} 24. exf5 {[%clk 0:01:22]}  Rxf5 {[%clk 0:02:14]} 25. Qe3 {[%clk 0:00:41]}  Nf6 {[%clk 0:02:05]} 26. Bxd6 {[%clk 0:00:36]}  Re8 {[%clk 0:02:04]} 27. Ra3 {[%clk 0:00:10]}  Qxe2 {[%clk 0:02:01]} 28. Qxe2 {[%clk 0:00:08]}  Rxe2 {[%clk 0:02:02]} 29. Ra8+ {[%clk 0:00:08]}  Re8 {[%clk 0:02:02]} 30. Ra7 {[%clk 0:00:06]}  Rxd5 {[%clk 0:02:01]} 0-1


[Site "https://www.chess.com"]

[Event "Titled Tuesday Blitz July 4 Early 2023"]
[White "Ahn, Hongjin"]
[Black "Frolyanov, Dmitry"]
[WhiteFideId "13201492"]
[BlackFideId "4151976"]
[WhiteElo "2374"]
[BlackElo "2571"]
[Result "0-1"]
[Round "3"]
[TimeControl "180+2"]
[Date "2023.07.04"]
[WhiteClock "0:00:10"]
[BlackClock "0:00:19"]
[Board "136"]

1. e4 {[%clk 0:03:00]}  e5 {[%clk 0:02:59]} 2. Nf3 {[%clk 0:02:59]}  Nf6 {[%clk 0:02:59]} 3. Nxe5 {[%clk 0:02:52]}  d6 {[%clk 0:02:59]} 4. Nf3 {[%clk 0:02:50]}  Nxe4 {[%clk 0:02:59]} 5. Bd3 {[%clk 0:02:49]}  Nf6 {[%clk 0:02:58]} 6. O-O {[%clk 0:02:49]}  Be7 {[%clk 0:02:59]} 7. c3 {[%clk 0:02:49]}  O-O {[%clk 0:02:59]} 8. Bc2 {[%clk 0:02:48]}  b6 {[%clk 0:03:00]} 9. d4 {[%clk 0:02:48]}  Bb7 {[%clk 0:03:00]} 10. Nbd2 {[%clk 0:02:49]}  Nbd7 {[%clk 0:03:00]} 11. Re1 {[%clk 0:02:49]}  Re8 {[%clk 0:03:01]} 12. Nf1 {[%clk 0:02:47]}  Bf8 {[%clk 0:03:01]} 13. Ng3 {[%clk 0:02:47]}  Bxf3 {[%clk 0:02:39]} 14. gxf3 {[%clk 0:02:47]}  Rxe1+ {[%clk 0:02:33]} 15. Qxe1 {[%clk 0:02:47]}  d5 {[%clk 0:02:28]} 16. Kh1 {[%clk 0:02:39]}  g6 {[%clk 0:02:26]} 17. Bg5 {[%clk 0:02:30]}  Bg7 {[%clk 0:02:25]} 18. Qd2 {[%clk 0:02:25]}  Nf8 {[%clk 0:02:23]} 19. Rg1 {[%clk 0:02:20]}  Qd7 {[%clk 0:02:11]} 20. Nf5 {[%clk 0:02:04]}  Nh5 {[%clk 0:01:47]} 21. Nxg7 {[%clk 0:01:37]}  Nxg7 {[%clk 0:01:48]} 22. Qf4 {[%clk 0:01:15]}  Nfe6 {[%clk 0:01:37]} 23. Qg4 {[%clk 0:01:12]}  f5 {[%clk 0:01:36]} 24. Qh4 {[%clk 0:01:07]}  Nxg5 {[%clk 0:01:36]} 25. Qxg5 {[%clk 0:01:06]}  Re8 {[%clk 0:01:34]} 26. Bd3 {[%clk 0:01:05]}  Qe7 {[%clk 0:01:29]} 27. Qh6 {[%clk 0:00:49]}  c6 {[%clk 0:01:25]} 28. h4 {[%clk 0:00:24]}  Qf6 {[%clk 0:01:23]} 29. Kh2 {[%clk 0:00:22]}  Re7 {[%clk 0:01:09]} 30. Kh3 {[%clk 0:00:19]}  Ne6 {[%clk 0:00:50]} 31. h5 {[%clk 0:00:13]}  Rg7 {[%clk 0:00:49]} 32. Rg3 {[%clk 0:00:07]}  Qf7 {[%clk 0:00:40]} 33. Kh2 {[%clk 0:00:05]}  Qc7 {[%clk 0:00:30]} 34. Kh1 {[%clk 0:00:04]}  Nf4 {[%clk 0:00:29]} 35. Bf1 {[%clk 0:00:02]}  Nxh5 {[%clk 0:00:29]} 36. Rg5 {[%clk 0:00:02]}  Qf4 {[%clk 0:00:26]} 37. Rxh5 {[%clk 0:00:02]}  Qxf3+ {[%clk 0:00:26]} 38. Bg2 {[%clk 0:00:02]}  Qxh5+ {[%clk 0:00:26]} 39. Qxh5 {[%clk 0:00:03]}  gxh5 {[%clk 0:00:27]} 40. Bh3 {[%clk 0:00:03]}  Rf7 {[%clk 0:00:24]} 41. Kg2 {[%clk 0:00:04]}  Kg7 {[%clk 0:00:24]} 42. Kf3 {[%clk 0:00:05]}  Kf6 {[%clk 0:00:25]} 43. Kf4 {[%clk 0:00:05]}  Re7 {[%clk 0:00:25]} 44. Bxf5 {[%clk 0:00:05]}  Re2 {[%clk 0:00:25]} 45. f3 {[%clk 0:00:05]}  Rxb2 {[%clk 0:00:25]} 46. Bd7 {[%clk 0:00:05]}  c5 {[%clk 0:00:24]} 47. Bc6 {[%clk 0:00:05]}  Ke6 {[%clk 0:00:23]} 48. Be8 {[%clk 0:00:02]}  Rxa2 {[%clk 0:00:22]} 49. Bxh5 {[%clk 0:00:02]}  Rc2 {[%clk 0:00:22]} 50. Bg4+ {[%clk 0:00:02]}  Kd6 {[%clk 0:00:22]} 51. Bf5 {[%clk 0:00:02]}  Rxc3 {[%clk 0:00:22]} 52. dxc5+ {[%clk 0:00:03]}  bxc5 {[%clk 0:00:22]} 53. Bxh7 {[%clk 0:00:04]}  a5 {[%clk 0:00:21]} 54. Kg4 {[%clk 0:00:03]}  a4 {[%clk 0:00:21]} 55. f4 {[%clk 0:00:03]}  a3 {[%clk 0:00:20]} 56. f5 {[%clk 0:00:04]}  Ke7 {[%clk 0:00:19]} 57. f6+ {[%clk 0:00:05]}  Kxf6 {[%clk 0:00:19]} 58. Bf5 {[%clk 0:00:03]}  Rc4+ {[%clk 0:00:19]} 59. Be4 {[%clk 0:00:04]}  Rxe4+ {[%clk 0:00:18]} 60. Kg3 {[%clk 0:00:05]}  a2 {[%clk 0:00:18]} 61. Kf2 {[%clk 0:00:06]}  a1=Q {[%clk 0:00:19]} 62. Kf3 {[%clk 0:00:06]}  Qc3+ {[%clk 0:00:19]} 63. Kg2 {[%clk 0:00:07]}  Qd2+ {[%clk 0:00:19]} 64. Kg3 {[%clk 0:00:08]}  Qd3+ {[%clk 0:00:19]} 65. Kf2 {[%clk 0:00:09]}  Re2+ {[%clk 0:00:19]} 66. Kf1 {[%clk 0:00:10]}  Qd1# {[%clk 0:00:19]} 0-1


[Site "https://www.chess.com"]

[Event "Titled Tuesday Blitz July 4 Early 2023"]
[White "Przybylski, Wojciech"]
[Black "Fernandez Siles, Luis"]
[WhiteFideId "1117599"]
[BlackFideId "2209420"]
[WhiteElo "2570"]
[BlackElo "2370"]
[Result "1-0"]
[Round "3"]
[TimeControl "180+2"]
[Date "2023.07.04"]
[WhiteClock "0:01:14"]
[BlackClock "0:00:14"]
[Board "137"]

1. e4 {[%clk 0:02:55]}  c5 {[%clk 0:02:59]} 2. Nf3 {[%clk 0:02:55]}  Nc6 {[%clk 0:03:00]} 3. Bb5 {[%clk 0:02:53]}  g6 {[%clk 0:03:00]} 4. O-O {[%clk 0:02:51]}  Bg7 {[%clk 0:03:00]} 5. c3 {[%clk 0:02:51]}  Nf6 {[%clk 0:02:58]} 6. Re1 {[%clk 0:02:51]}  O-O {[%clk 0:02:58]} 7. a3 {[%clk 0:02:51]}  e5 {[%clk 0:02:39]} 8. h3 {[%clk 0:02:41]}  d6 {[%clk 0:02:28]} 9. d3 {[%clk 0:02:39]}  Ne8 {[%clk 0:02:13]} 10. Bc4 {[%clk 0:02:37]}  Be6 {[%clk 0:02:10]} 11. Bxe6 {[%clk 0:02:33]}  fxe6 {[%clk 0:02:10]} 12. Qb3 {[%clk 0:02:32]}  Qd7 {[%clk 0:02:01]} 13. Nbd2 {[%clk 0:02:31]}  b6 {[%clk 0:01:58]} 14. Nc4 {[%clk 0:02:29]}  Kh8 {[%clk 0:01:54]} 15. a4 {[%clk 0:02:27]}  Nc7 {[%clk 0:01:46]} 16. Bg5 {[%clk 0:02:25]}  Rxf3 {[%clk 0:01:39]} 17. gxf3 {[%clk 0:02:25]}  Rf8 {[%clk 0:01:37]} 18. Nd2 {[%clk 0:02:24]}  h6 {[%clk 0:01:35]} 19. Bh4 {[%clk 0:02:23]}  g5 {[%clk 0:01:34]} 20. Bg3 {[%clk 0:02:23]}  Qf7 {[%clk 0:01:34]} 21. Qd1 {[%clk 0:02:18]}  Ne7 {[%clk 0:01:29]} 22. a5 {[%clk 0:02:15]}  b5 {[%clk 0:01:28]} 23. b4 {[%clk 0:02:15]}  Ng6 {[%clk 0:01:21]} 24. bxc5 {[%clk 0:02:11]}  dxc5 {[%clk 0:01:22]} 25. d4 {[%clk 0:02:09]}  exd4 {[%clk 0:01:19]} 26. cxd4 {[%clk 0:02:04]}  Bxd4 {[%clk 0:01:18]} 27. Nb3 {[%clk 0:02:02]}  Bxa1 {[%clk 0:00:58]} 28. Qxa1+ {[%clk 0:02:01]}  Kh7 {[%clk 0:00:58]} 29. Nxc5 {[%clk 0:01:59]}  Qxf3 {[%clk 0:00:54]} 30. Qd1 {[%clk 0:01:48]}  Qf7 {[%clk 0:00:36]} 31. Qd6 {[%clk 0:01:36]}  Nf4 {[%clk 0:00:35]} 32. Kh2 {[%clk 0:01:26]}  Rg8 {[%clk 0:00:27]} 33. Nd7 {[%clk 0:01:23]}  Nh5 {[%clk 0:00:19]} 34. Qxc7 {[%clk 0:01:14]}  Nxg3 {[%clk 0:00:18]} 35. Nf6+ {[%clk 0:01:13]}  Kg6 {[%clk 0:00:16]} 36. Qxf7+ {[%clk 0:01:13]}  Kxf7 {[%clk 0:00:14]} 37. Nxg8 {[%clk 0:01:14]} 1-0


[Site "https://www.chess.com"]

[Event "Titled Tuesday Blitz July 4 Early 2023"]
[White "Nithyalakshmi, Sivanesan"]
[Black "Siniauski, Artsiom"]
[WhiteFideId "5706955"]
[BlackFideId "13512269"]
[WhiteElo "2358"]
[BlackElo "2561"]
[Result "0-1"]
[Round "3"]
[TimeControl "180+2"]
[Date "2023.07.04"]
[WhiteClock "0:00:02"]
[BlackClock "0:01:21"]
[Board "140"]

1. e4 {[%clk 0:02:56]}  e6 {[%clk 0:02:59]} 2. d4 {[%clk 0:02:56]}  d5 {[%clk 0:03:00]} 3. Bd3 {[%clk 0:02:56]}  Nc6 {[%clk 0:03:00]} 4. c3 {[%clk 0:02:52]}  e5 {[%clk 0:03:00]} 5. Nf3 {[%clk 0:02:43]}  exd4 {[%clk 0:02:59]} 6. cxd4 {[%clk 0:02:30]}  Bb4+ {[%clk 0:02:59]} 7. Bd2 {[%clk 0:02:29]}  Nge7 {[%clk 0:02:56]} 8. e5 {[%clk 0:02:23]}  Bg4 {[%clk 0:02:55]} 9. Bxb4 {[%clk 0:02:16]}  Nxb4 {[%clk 0:02:55]} 10. Qa4+ {[%clk 0:02:14]}  Nbc6 {[%clk 0:02:48]} 11. Nbd2 {[%clk 0:02:14]}  Qd7 {[%clk 0:02:47]} 12. h3 {[%clk 0:02:12]}  Bxf3 {[%clk 0:02:42]} 13. Nxf3 {[%clk 0:02:11]}  Nxe5 {[%clk 0:02:38]} 14. Qxd7+ {[%clk 0:02:00]}  Nxd7 {[%clk 0:02:39]} 15. Rc1 {[%clk 0:01:59]}  c6 {[%clk 0:02:38]} 16. O-O {[%clk 0:01:59]}  f6 {[%clk 0:02:34]} 17. Rfe1 {[%clk 0:01:58]}  Kf7 {[%clk 0:02:34]} 18. Rc3 {[%clk 0:01:53]}  Rhe8 {[%clk 0:02:28]} 19. Rb3 {[%clk 0:01:51]}  Rab8 {[%clk 0:02:28]} 20. Kf1 {[%clk 0:01:43]}  Nf8 {[%clk 0:02:27]} 21. Ra3 {[%clk 0:01:39]}  a6 {[%clk 0:02:26]} 22. Rc3 {[%clk 0:01:37]}  Nc8 {[%clk 0:02:15]} 23. Rec1 {[%clk 0:01:25]}  Nd6 {[%clk 0:02:14]} 24. Ng1 {[%clk 0:01:20]}  Ne6 {[%clk 0:02:12]} 25. Ne2 {[%clk 0:01:19]}  h5 {[%clk 0:02:11]} 26. f3 {[%clk 0:01:18]}  g5 {[%clk 0:02:10]} 27. Kf2 {[%clk 0:01:13]}  Nb5 {[%clk 0:02:07]} 28. Bxb5 {[%clk 0:01:11]}  axb5 {[%clk 0:02:08]} 29. Rd3 {[%clk 0:01:04]}  Ra8 {[%clk 0:02:08]} 30. a3 {[%clk 0:01:04]}  Ra4 {[%clk 0:02:06]} 31. Rcd1 {[%clk 0:00:57]}  b4 {[%clk 0:01:52]} 32. Ng3 {[%clk 0:00:43]}  Nf4 {[%clk 0:01:46]} 33. Rb3 {[%clk 0:00:40]}  h4 {[%clk 0:01:44]} 34. Nf5 {[%clk 0:00:36]}  Re2+ {[%clk 0:01:44]} 35. Kf1 {[%clk 0:00:35]}  Rxg2 {[%clk 0:01:42]} 36. Nd6+ {[%clk 0:00:32]}  Kg6 {[%clk 0:01:41]} 37. Nxb7 {[%clk 0:00:32]}  bxa3 {[%clk 0:01:36]} 38. bxa3 {[%clk 0:00:28]}  Rh2 {[%clk 0:01:33]} 39. Nc5 {[%clk 0:00:28]}  Rc4 {[%clk 0:01:27]} 40. Nd3 {[%clk 0:00:10]}  Rh1+ {[%clk 0:01:20]} 41. Kf2 {[%clk 0:00:02]}  Rc2+ {[%clk 0:01:21]} 0-1


[Site "https://www.chess.com"]

[Event "Titled Tuesday Blitz July 4 Early 2023"]
[White "Golubev, Mikhail"]
[Black "Todorovic, Bojan"]
[WhiteFideId "14100983"]
[BlackFideId "917087"]
[WhiteElo "2556"]
[BlackElo "2350"]
[Result "1/2-1/2"]
[Round "3"]
[TimeControl "180+2"]
[Date "2023.07.04"]
[WhiteClock "0:00:06"]
[BlackClock "0:00:12"]
[Board "143"]

1. e4 {[%clk 0:03:00]}  g6 {[%clk 0:02:57]} 2. d4 {[%clk 0:03:00]}  Bg7 {[%clk 0:02:57]} 3. Nc3 {[%clk 0:02:56]}  d6 {[%clk 0:02:57]} 4. Be3 {[%clk 0:02:54]}  a6 {[%clk 0:02:57]} 5. Qd2 {[%clk 0:02:51]}  Nd7 {[%clk 0:02:56]} 6. Nf3 {[%clk 0:02:42]}  b5 {[%clk 0:02:54]} 7. O-O-O {[%clk 0:02:29]}  Bb7 {[%clk 0:02:54]} 8. Bd3 {[%clk 0:02:16]}  Ngf6 {[%clk 0:02:50]} 9. Bh6 {[%clk 0:01:53]}  Bxh6 {[%clk 0:02:47]} 10. Qxh6 {[%clk 0:01:54]}  b4 {[%clk 0:02:46]} 11. Nd5 {[%clk 0:01:50]}  Nxd5 {[%clk 0:02:38]} 12. exd5 {[%clk 0:01:51]}  Bxd5 {[%clk 0:02:38]} 13. Rhe1 {[%clk 0:01:47]}  e6 {[%clk 0:02:33]} 14. Ng5 {[%clk 0:01:22]}  Qf6 {[%clk 0:02:14]} 15. Nxh7 {[%clk 0:01:19]}  O-O-O {[%clk 0:02:04]} 16. Nxf6 {[%clk 0:01:15]}  Rxh6 {[%clk 0:02:03]} 17. Nxd5 {[%clk 0:01:10]}  exd5 {[%clk 0:02:04]} 18. Bxa6+ {[%clk 0:01:10]}  Kb8 {[%clk 0:02:04]} 19. h3 {[%clk 0:01:10]}  g5 {[%clk 0:01:53]} 20. Re7 {[%clk 0:01:06]}  f5 {[%clk 0:01:50]} 21. Bb5 {[%clk 0:01:03]}  Nf6 {[%clk 0:01:44]} 22. Re6 {[%clk 0:00:55]}  Rdh8 {[%clk 0:01:36]} 23. f3 {[%clk 0:00:50]}  Nh5 {[%clk 0:01:25]} 24. Rxh6 {[%clk 0:00:46]}  Rxh6 {[%clk 0:01:25]} 25. Bc6 {[%clk 0:00:40]}  Nf4 {[%clk 0:01:25]} 26. g3 {[%clk 0:00:35]}  Ne2+ {[%clk 0:01:25]} 27. Kd2 {[%clk 0:00:34]}  Nxg3 {[%clk 0:01:25]} 28. Bxd5 {[%clk 0:00:33]}  Rxh3 {[%clk 0:01:24]} 29. Kd3 {[%clk 0:00:29]}  Nh5 {[%clk 0:01:11]} 30. Kc4 {[%clk 0:00:29]}  Nf4 {[%clk 0:01:09]} 31. Bc6 {[%clk 0:00:26]}  d5+ {[%clk 0:01:09]} 32. Kb5 {[%clk 0:00:20]}  Ne6 {[%clk 0:00:58]} 33. Bxd5 {[%clk 0:00:19]}  Nd8 {[%clk 0:00:54]} 34. Rd3 {[%clk 0:00:12]}  c6+ {[%clk 0:00:42]} 35. Bxc6 {[%clk 0:00:12]}  Nxc6 {[%clk 0:00:42]} 36. Kxc6 {[%clk 0:00:12]}  g4 {[%clk 0:00:43]} 37. Re3 {[%clk 0:00:08]}  Rh6+ {[%clk 0:00:40]} 38. Kc5 {[%clk 0:00:07]}  g3 {[%clk 0:00:40]} 39. Re1 {[%clk 0:00:05]}  Rh2 {[%clk 0:00:31]} 40. Kxb4 {[%clk 0:00:04]}  Rxc2 {[%clk 0:00:30]} 41. f4 {[%clk 0:00:04]}  Rxb2+ {[%clk 0:00:29]} 42. Kc5 {[%clk 0:00:04]}  Rxa2 {[%clk 0:00:29]} 43. Rg1 {[%clk 0:00:03]}  Ra3 {[%clk 0:00:23]} 44. Kd5 {[%clk 0:00:02]}  Kc7 {[%clk 0:00:24]} 45. Ke5 {[%clk 0:00:02]}  Kc6 {[%clk 0:00:20]} 46. Kxf5 {[%clk 0:00:02]}  Kd5 {[%clk 0:00:20]} 47. Kg4 {[%clk 0:00:02]}  Kxd4 {[%clk 0:00:11]} 48. Rxg3 {[%clk 0:00:03]}  Ra8 {[%clk 0:00:11]} 49. f5 {[%clk 0:00:03]}  Ke5 {[%clk 0:00:11]} 50. Re3+ {[%clk 0:00:03]}  Kf6 {[%clk 0:00:11]} 51. Re6+ {[%clk 0:00:03]}  Kf7 {[%clk 0:00:11]} 52. Rb6 {[%clk 0:00:04]}  Ra1 {[%clk 0:00:10]} 53. Kg5 {[%clk 0:00:04]}  Rg1+ {[%clk 0:00:10]} 54. Kf4 {[%clk 0:00:04]}  Rf1+ {[%clk 0:00:10]} 55. Kg5 {[%clk 0:00:04]}  Rg1+ {[%clk 0:00:10]} 56. Kf4 {[%clk 0:00:05]}  Rf1+ {[%clk 0:00:11]} 57. Ke5 {[%clk 0:00:05]}  Re1+ {[%clk 0:00:11]} 58. Kf4 {[%clk 0:00:06]}  Rf1+ {[%clk 0:00:12]} 1/2-1/2


[Site "https://www.chess.com"]

[Event "Titled Tuesday Blitz July 4 Early 2023"]
[White "Juknis, Paulius"]
[Black "Estrada Nieto, Julian"]
[WhiteFideId "12802247"]
[BlackFideId "5101018"]
[WhiteElo "2322"]
[BlackElo "2554"]
[Result "0-1"]
[Round "3"]
[TimeControl "180+2"]
[Date "2023.07.04"]
[WhiteClock "0:00:29"]
[BlackClock "0:00:16"]
[Board "146"]

1. e4 {[%clk 0:03:00]}  e5 {[%clk 0:02:59]} 2. Bc4 {[%clk 0:03:00]}  Nf6 {[%clk 0:02:56]} 3. d4 {[%clk 0:03:00]}  exd4 {[%clk 0:02:54]} 4. Nf3 {[%clk 0:03:01]}  Nc6 {[%clk 0:02:51]} 5. e5 {[%clk 0:03:00]}  d5 {[%clk 0:02:49]} 6. Bb5 {[%clk 0:03:01]}  Ne4 {[%clk 0:02:49]} 7. Nxd4 {[%clk 0:03:00]}  Bd7 {[%clk 0:02:49]} 8. Bxc6 {[%clk 0:03:01]}  bxc6 {[%clk 0:02:48]} 9. O-O {[%clk 0:03:01]}  Bc5 {[%clk 0:02:38]} 10. f3 {[%clk 0:03:01]}  Ng5 {[%clk 0:02:38]} 11. f4 {[%clk 0:03:01]}  Ne6 {[%clk 0:02:29]} 12. Be3 {[%clk 0:03:01]}  f5 {[%clk 0:02:29]} 13. c3 {[%clk 0:03:00]}  O-O {[%clk 0:02:26]} 14. Nd2 {[%clk 0:02:47]}  Bb6 {[%clk 0:02:19]} 15. a4 {[%clk 0:02:32]}  c5 {[%clk 0:02:06]} 16. Nxe6 {[%clk 0:02:31]}  Bxe6 {[%clk 0:02:06]} 17. a5 {[%clk 0:02:32]}  d4 {[%clk 0:02:02]} 18. Bf2 {[%clk 0:02:24]}  Qd5 {[%clk 0:01:50]} 19. axb6 {[%clk 0:02:08]}  axb6 {[%clk 0:01:50]} 20. Qf3 {[%clk 0:02:01]}  Rxa1 {[%clk 0:01:35]} 21. Rxa1 {[%clk 0:01:59]}  Qd7 {[%clk 0:01:35]} 22. cxd4 {[%clk 0:01:56]}  cxd4 {[%clk 0:01:35]} 23. Ra8 {[%clk 0:01:54]}  Bd5 {[%clk 0:01:31]} 24. Rxf8+ {[%clk 0:01:52]}  Kxf8 {[%clk 0:01:32]} 25. Qa3+ {[%clk 0:01:50]}  c5 {[%clk 0:01:27]} 26. Bxd4 {[%clk 0:01:33]}  Bc6 {[%clk 0:01:23]} 27. Bxc5+ {[%clk 0:01:05]}  bxc5 {[%clk 0:01:21]} 28. Qxc5+ {[%clk 0:01:06]}  Kf7 {[%clk 0:01:20]} 29. Qd6 {[%clk 0:01:06]}  Qa7+ {[%clk 0:00:57]} 30. Kf1 {[%clk 0:00:53]}  Bb5+ {[%clk 0:00:55]} 31. Ke1 {[%clk 0:00:52]}  Qg1+ {[%clk 0:00:44]} 32. Nf1 {[%clk 0:00:52]}  Qxf1+ {[%clk 0:00:42]} 33. Kd2 {[%clk 0:00:52]}  Qxg2+ {[%clk 0:00:37]} 34. Kc3 {[%clk 0:00:53]}  Qc6+ {[%clk 0:00:37]} 35. Kd4 {[%clk 0:00:48]}  Qxd6+ {[%clk 0:00:31]} 36. exd6 {[%clk 0:00:48]}  Ke6 {[%clk 0:00:31]} 37. Kc5 {[%clk 0:00:48]}  Ba4 {[%clk 0:00:26]} 38. b4 {[%clk 0:00:49]}  h6 {[%clk 0:00:22]} 39. h4 {[%clk 0:00:45]}  g6 {[%clk 0:00:22]} 40. b5 {[%clk 0:00:40]}  Bxb5 {[%clk 0:00:21]} 41. Kxb5 {[%clk 0:00:41]}  Kxd6 {[%clk 0:00:21]} 42. Kc4 {[%clk 0:00:40]}  Ke6 {[%clk 0:00:18]} 43. Kc5 {[%clk 0:00:38]}  Kf6 {[%clk 0:00:15]} 44. Kd4 {[%clk 0:00:32]}  g5 {[%clk 0:00:15]} 45. hxg5+ {[%clk 0:00:30]}  hxg5 {[%clk 0:00:15]} 46. fxg5+ {[%clk 0:00:29]}  Kxg5 {[%clk 0:00:15]} 47. Ke3 {[%clk 0:00:29]}  Kg4 {[%clk 0:00:16]} 0-1


[Site "https://www.chess.com"]